fUSD/lending_fUSD_20250227
["ID","MTS","AMOUNT","RATE_DAILY","PERIOD"]
[354764260,1740669061908,-500.0,0.0005589,120]
[354764262,1740669061917,-500.0,0.0005589,120]
[354764264,1740669061926,-500.0,0.0005589,120]
[354764266,1740669061936,-500.0,0.0005589,120]
[354764268,1740669061945,-571.3409195,0.0005589,120]
[354764270,1740669061954,-500.0,0.0005589,120]
[354764272,1740669061964,-500.0,0.0005589,120]
[354764274,1740669061974,-500.0,0.0005589,120]
[354764276,1740669061983,-500.0,0.0005589,120]
[354764278,1740669061991,-670.0,0.0005589,120]
[354764280,1740669062001,-500.0,0.0005589,120]
[354764282,1740669062011,-500.0,0.0005589,120]
[354764284,1740669062021,-500.0,0.0005589,120]
[354764286,1740669062031,-500.0,0.0005589,120]
[354764288,1740669062049,-500.0,0.0005589,120]
[354764291,1740669062061,-500.0,0.0005589,120]
[354764293,1740669062071,-500.0,0.0005589,120]
[354764295,1740669062081,-223.02547538,0.0005589,120]
[354764297,1740669062092,-1070.82,0.0005589,120]
[354764299,1740669062102,-500.0,0.0005589,120]
[354764301,1740669062112,-708.8,0.0005589,120]
[354764303,1740669062122,-500.0,0.0005589,120]
[354764305,1740669062132,-500.0,0.0005589,120]
[354764307,1740669062150,-500.0,0.0005589,120]
[354764309,1740669062160,-500.0,0.0005589,120]
[354764311,1740669062170,-500.0,0.0005589,120]
[354764313,1740669062180,-500.0,0.0005589,120]
[354764315,1740669062191,-500.0,0.0005589,120]
[354764317,1740669062200,-500.0,0.0005589,120]
[354764319,1740669062210,-500.0,0.0005589,120]
[354764321,1740669062220,-290.03467862,0.0005592,15]
[354764324,1740669062231,-172.86411287,0.0005592,15]
[354764326,1740669062240,-386.48899128,0.00055934,120]
[354764328,1740669062251,-416.0,0.0005597,30]
[354764330,1740669062260,-416.0,0.0005598,30]
[354764332,1740669062270,-416.0,0.0005599,30]
[354764334,1740669062279,-2277.65590744,0.00055995,2]
[354764335,1740669062289,-521.7301647,0.00055999,120]
[354764338,1740669062298,-50000.0,0.00056,56]
[354764339,1740669062308,-1000000.0,0.00056,120]
[354764341,1740669062318,-658641.5163186,0.00056,120]
[354764405,1740669062995,-250.2,0.00049945,120]
[354764407,1740669063007,-797.61,0.00049945,120]
[354764409,1740669063018,-500.0,0.00055068,120]
[354764411,1740669063027,-500.0,0.00055342,120]
[354764413,1740669063038,-500.0,0.00055616,120]
[354764415,1740669063048,-500.0,0.0005589,120]
[354764417,1740669063059,-106250.2085466,0.00056,120]
[354764521,1740669064178,-10247.18723722,0.00056,120]
[354764532,1740669064282,-383.09087103,0.00056,120]
[354764535,1740669064305,-1589.59795169,0.00056,120]
[354764545,1740669064397,-152.03208683,0.00054794,120]
[354764547,1740669064407,-50638.88361117,0.00056,120]
[354764550,1740669064420,-1156.25298002,0.00056,120]
[354764552,1740669064431,-2524.2499999,0.00056,120]
[354764554,1740669064444,-545.3499894,0.00056,120]
[354764561,1740669064514,-500.0,0.00054794,120]
[354764563,1740669064524,-500.0,0.00054794,120]
[354764565,1740669064534,-500.0,0.00055068,120]
[354764567,1740669064544,-500.0,0.00055068,120]
[354764569,1740669064554,-500.0,0.00055342,120]
[354764571,1740669064563,-3095.82016693,0.00056,120]
[354764985,1740669963524,226.9821445,0.000148,2]
[354764989,1740670107932,1002.77882679,0.00029197,46]
[354764990,1740670110875,284.09922914,0.00029197,30]
[354764992,1740670111529,559.44790441,0.00029197,30]
[354764998,1740670146969,-1519.174706,0.00014824,2]
[354764999,1740670146994,-235.17366021,0.00014899,2]
[354765000,1740670147018,-300.0,0.00014899,2]
[354765001,1740670147040,-7945.65163379,0.000149,2]
[354765002,1740670148729,-7653.56116889,0.000149,2]
[354765003,1740670148753,-164.10155776,0.000149,2]
[354765004,1740670148775,-900.533,0.000149,2]
[354765005,1740670148800,-150.0,0.00014999,2]
[354765006,1740670148825,-1131.80427335,0.00015,2]
[354765007,1740670149336,-10000.0,0.00015,2]
[354765008,1740670149690,-10000.0,0.00015,2]
[354765009,1740670150106,-10000.0,0.00015,2]
[354765010,1740670150601,-10000.0,0.00015,2]
[354765011,1740670150965,-10000.0,0.00015,2]
[354765012,1740670151354,-10000.0,0.00015,2]
[354765013,1740670151730,-10000.0,0.00015,2]
[354765014,1740670152036,-10000.0,0.00015,2]
[354765015,1740670152396,-10000.0,0.00015,2]
[354765016,1740670152870,-10000.0,0.00015,2]
[354765017,1740670153476,-308.77496291,0.000149,2]
[354765018,1740670153503,-9691.22503709,0.00015,2]
[354765019,1740670153897,-10000.0,0.00015,2]
[354765020,1740670154242,-10000.0,0.00015,2]
[354765021,1740670154713,-10000.0,0.00015,2]
[354765022,1740670155036,-10000.0,0.00015,2]
[354765023,1740670155456,-10000.0,0.00015,2]
[354765024,1740670156023,-10000.0,0.00015,2]
[354765025,1740670156367,-10000.0,0.00015,2]
[354765026,1740670156714,-10000.0,0.00015,2]
[354765027,1740670157172,-10000.0,0.00015,2]
[354765028,1740670157948,-10000.0,0.00015,2]
[354765029,1740670158222,-10000.0,0.00015,2]
[354765030,1740670158656,-10000.0,0.00015,2]
[354765031,1740670159014,-10000.0,0.00015,2]
[354765032,1740670159468,-10000.0,0.00015,2]
[354765033,1740670161900,-1037.4729002,0.00025,60]
[354765034,1740670161922,-1508.20688545,0.00025,60]
[354765035,1740670161978,-10000.0,0.00015,2]
[354765036,1740670162288,-10000.0,0.00015,2]
[354765037,1740670162737,-10000.0,0.00015,2]
[354765038,1740670163347,-10000.0,0.00015,2]
[354765039,1740670163695,-10000.0,0.00015,2]
[354765040,1740670164056,-10000.0,0.00015,2]
[354765041,1740670164695,-10000.0,0.00015,2]
[354765042,1740670165290,-10000.0,0.00015,2]
[354765043,1740670165810,-10000.0,0.00015,2]
[354765044,1740670166408,-10000.0,0.00015,2]
[354765045,1740670166963,-10000.0,0.00015,2]
[354765046,1740670167478,-10000.0,0.00015,2]
[354765047,1740670168138,-10000.0,0.00015,2]
[354765048,1740670168543,-10000.0,0.00015,2]
[354765049,1740670169156,-10000.0,0.00015,2]
[354765050,1740670169629,-10000.0,0.00015,2]
[354765051,1740670170180,-10000.0,0.00015,2]
[354765052,1740670170655,-10000.0,0.00015,2]
[354765053,1740670171184,-10000.0,0.00015,2]
[354765054,1740670171722,-10000.0,0.00015,2]
[354765055,1740670172294,-10000.0,0.00015,2]
[354765056,1740670172623,-10000.0,0.00015,2]
[354765057,1740670173606,-10000.0,0.00015,2]
[354765058,1740670174480,-10000.0,0.00015,2]
[354765059,1740670184155,-7695.0,0.00015,2]
[354765065,1740670210769,-3530.93,0.0001499,2]
[354765066,1740670210798,-300.0,0.00014999,2]
[354765067,1740670210828,-46169.07,0.00015,2]
[354765068,1740670211671,-50000.0,0.00015,2]
[354765069,1740670213798,-50000.0,0.00015,2]
[354765070,1740670216148,-1176.98,0.0001499,2]
[354765071,1740670216174,-8823.02,0.00015,2]
[354765072,1740670218096,-10000.0,0.00015,2]
[354765073,1740670220448,-33541.87335351,0.00015,2]
[354765074,1740670220475,-16458.12664649,0.00015,2]
[354765082,1740670231780,-8729.203603,0.00015,2]
[354765084,1740670231795,-1950.67266079,0.00015,2]
[354765085,1740670231911,-13144.50005,0.00015,2]
[354765086,1740670231923,-544.4382,0.00015,2]
[354765087,1740670231933,-4366.45,0.00015,2]
[354765088,1740670231950,-54895.4554378,0.00015,2]
[354765089,1740670232096,-1919.69560607,0.00015,2]
[354765090,1740670232109,-2226.36125196,0.00015,2]
[354765139,1740670237788,-12058.59879735,0.00015,2]
[354765140,1740670237798,-420.0,0.00016416,2]
[354765141,1740670237808,-587.0,0.00017966,2]
[354765142,1740670237818,-328.0,0.00019663,2]
[354765143,1740670237827,-53287.13801273,0.0002,4]
[354765144,1740670237838,-3432.42956894,0.000209,2]
[354765145,1740670237849,-250.0,0.00021,2]
[354765146,1740670237859,-3432.42956894,0.000249,2]
[354765147,1740670237871,-610.00001,0.00025,2]
[354765148,1740670237883,-283.44998939,0.0002597,2]
[354765149,1740670237893,-157.39,0.00026849,2]
[354765150,1740670237904,-1177.63232622,0.00028197,2]
[354765151,1740670237913,-3432.42956894,0.000289,2]
[354765152,1740670237923,-9999.999999,0.00029197,2]
[354765153,1740670237933,-3432.42956894,0.000329,2]
[354765154,1740670237944,-300.55444405,0.00034,2]
[354765155,1740670237955,-157.39,0.00036027,2]
[354765156,1740670237965,-3432.42956894,0.000369,2]
[354765157,1740670237974,-150.46,0.00037473,2]
[354765158,1740670237984,-1097.28692091,0.00039,120]
[354765159,1740670237993,-222.2,0.00040059,2]
[354765160,1740670238003,-3432.42956894,0.000409,15]
[354765161,1740670238012,-2729.46239424,0.00042,120]
[354765162,1740670238021,-500.0,0.00042692,2]
[354765163,1740670238031,-2662.29183801,0.00043,120]
[354765164,1740670238041,-3432.42956894,0.000449,15]
[354765165,1740670238053,-291.0,0.0004497,30]
[354765166,1740670238062,-291.0,0.0004498,30]
[354765167,1740670238072,-291.0,0.0004499,30]
[354765168,1740670238081,-1176.98,0.0004499,2]
[354765169,1740670238091,-295.58813104,0.0004499,7]
[354765171,1740670238100,-500.0,0.00044999,120]
[354765172,1740670238109,-500.0,0.00044999,120]
[354765173,1740670238119,-500.0,0.00044999,120]
[354765174,1740670238128,-566.74532775,0.00044999,120]
[354765175,1740670238137,-151.0,0.00045,120]
[354765177,1740670238146,-2175.85661636,0.00045,120]
[354765179,1740670238155,-2295.79338159,0.00045,14]
[354765181,1740670238165,-51073.13519563,0.00045,90]
[354765183,1740670238188,-4790.072,0.00045,90]
[354765185,1740670238200,-24858.84517,0.00045,90]
[354765187,1740670238219,-7668.80883053,0.00045,90]
[354765201,1740670239759,-210.21568983,0.000203,2]
[354765202,1740670239769,-210.21568969,0.00022233,3]
[354765203,1740670239779,-210.21568969,0.00024567,3]
[354765204,1740670239789,-210.21568969,0.000269,4]
[354765205,1740670239802,-20386.36688151,0.00045,90]
[354765206,1740670239991,-150.0,0.00042,120]
[354765207,1740670240000,-3963.48569578,0.00045,90]
[354765208,1740670240012,-19537.28665437,0.00045,90]
[354765213,1740670240729,-382.92267936,0.00045,90]
[354765214,1740670240749,-475.518,0.00045,90]
[354765215,1740670240760,-4958.14467444,0.00045,90]
[354765216,1740670240820,-87922.11578601,0.00045,90]
[354765217,1740670240835,-183351.02016267,0.00045,90]
[354765218,1740670240849,-85537.04610085,0.00045,90]
[354765219,1740670240863,-12440.64970083,0.00045,90]
[354765220,1740670240907,-210.21568969,0.00029233,5]
[354765221,1740670240918,-150.0,0.00042692,2]
[354765222,1740670240927,-55.92494334,0.00045,90]
[354765226,1740670242843,-210.21568969,0.00031567,6]
[354765227,1740670242852,-210.21568969,0.000339,6]
[354765228,1740670242862,-210.21568969,0.00036233,7]
[354765229,1740670242875,-210.21568969,0.00038567,8]
[354765230,1740670242885,-210.21568969,0.000409,8]
[354765231,1740670242894,-210.21568969,0.00043233,9]
[354765232,1740670242904,-100330.60779405,0.00045,90]
[354765233,1740670242974,-99323.05078158,0.00045,90]
[354765234,1740670242986,-521243.66051026,0.00045,90]
[354765240,1740670246191,-345.06561972,0.00045,90]
[354765241,1740670246343,-13079.71665,0.00045,90]
[354765242,1740670246355,-286.1571269,0.00045,90]
[354765243,1740670246367,-9959.43827917,0.00045,90]
[354765244,1740670246401,-13066.65,0.00045,90]
[354765246,1740670246413,-32482.80969224,0.00045,90]
[354766506,1740670344176,1671.44488346,0.00014,2]
[354766575,1740671432018,-186.314031,0.00016376,2]
[354766577,1740671432030,-150.0,0.00016458,2]
[354766579,1740671432039,-421.5759695,0.0001649,2]
[354766581,1740671432051,-510.674481,0.0001649,2]
[354766582,1740671432138,-1391.08289891,0.0001649,2]
[354766583,1740671432148,-633.91710109,0.000165,3]
[354766593,1740671437862,-1004.57485244,0.000165,3]
[354766594,1740671437967,-361.50804647,0.000165,3]
[354766595,1740671437976,-3866.05396162,0.000165,2]
[354766596,1740671438233,-430.0,0.000165,2]
[354766780,1740671440266,-462.09694776,0.000165,2]
[354766782,1740671440278,-657.4448392,0.000165,2]
[354766784,1740671440292,-1306.655,0.000165,2]
[354766787,1740671440303,-328.86805204,0.000165,2]
[354766789,1740671440314,-4559.689305,0.000165,2]
[354766791,1740671440326,-608.84097965,0.000165,2]
[354766793,1740671440339,-19220.3961,0.000165,2]
[354766799,1740671440386,-10377.59079056,0.000165,2]
[354766801,1740671440397,-1325.40492888,0.000165,2]
[354766803,1740671440408,-3123.85136076,0.000165,2]
[354766806,1740671440419,-2378.73847297,0.000165,2]
[354766808,1740671440431,-318.478,0.000165,2]
[354766810,1740671440443,-309.60328683,0.000165,2]
[354766812,1740671440454,-1051.86026952,0.000165,2]
[354766814,1740671440465,-304.57096268,0.000165,2]
[354766816,1740671440475,-236.00886877,0.000165,2]
[354766818,1740671440484,-410.14500092,0.000165,2]
[354766820,1740671440494,-173.00437591,0.000165,2]
[354766822,1740671440503,-500.0,0.000165,2]
[354766824,1740671440512,-1019.57369601,0.000165,2]
[354767102,1740671443098,-1800.5061321,0.000165,2]
[354767104,1740671443107,-511.0,0.000175,2]
[354767106,1740671443117,-150.0,0.00018013,2]
[354767108,1740671443127,-150.0,0.00018059,2]
[354767110,1740671443136,-207.85161025,0.000203,2]
[354767113,1740671443146,-207.85161008,0.000203,2]
[354767115,1740671443156,-250.0,0.00021,2]
[354767117,1740671443165,-207.85161008,0.00021186,2]
[354767119,1740671443174,-185.82,0.00021918,2]
[354767121,1740671443184,-207.85161008,0.00023329,3]
[354767123,1740671443193,-575.989,0.00023944,5]
[354767124,1740671443203,-207.85161008,0.00025471,4]
[354767126,1740671443212,-191.64,0.00026849,2]
[354767129,1740671443222,-207.85161008,0.00027614,4]
[354767130,1740671443231,-207.85161008,0.00029757,5]
[354767132,1740671443240,-207.85161008,0.000319,6]
[354767134,1740671443250,-477.0515508,0.00032195,30]
[354767136,1740671443261,-191.64,0.00032646,2]
[354767138,1740671443272,-207.85161008,0.00034043,6]
[354767140,1740671443285,-150.0,0.00034548,10]
[354767142,1740671443294,-415.78,0.00035479,2]
[354767144,1740671443303,-256.66,0.00035479,2]
[354767146,1740671443315,-6665.01,0.00035515,2]
[354767148,1740671443324,-1000.0,0.00035529,2]
[354767150,1740671443334,-474.82,0.00035576,2]
[354767152,1740671443343,-415.78,0.00035666,2]
[354767154,1740671443363,-184.71,0.0003568,120]
[354767155,1740671443373,-415.78,0.00035852,2]
[354767156,1740671443382,-415.78,0.00036039,2]
[354767157,1740671443392,-207.85161008,0.00036186,7]
[354767158,1740671443402,-415.78,0.00036226,2]
[354767159,1740671443411,-222.2,0.00036406,2]
[354767160,1740671443421,-415.78,0.00036413,2]
[354767161,1740671443430,-415.78,0.00036599,2]
[354767162,1740671443440,-415.78,0.00036786,2]
[354767163,1740671443451,-415.78,0.00036973,2]
[354767164,1740671443460,-415.78,0.00037159,2]
[354767165,1740671443470,-415.78,0.00037346,2]
[354767166,1740671443480,-415.78,0.00037533,2]
[354767167,1740671443489,-415.78,0.0003772,2]
[354767168,1740671443498,-415.78,0.00037906,2]
[354767169,1740671443508,-415.78,0.00038093,2]
[354767170,1740671443518,-415.78,0.0003828,2]
[354767171,1740671443528,-207.85161008,0.00038329,8]
[354767172,1740671443539,-191.64,0.00038443,2]
[354767173,1740671443549,-415.78,0.00038467,2]
[354767174,1740671443558,-154.92,0.00038623,120]
[354767176,1740671443568,-415.78,0.00038653,2]
[354767178,1740671443578,-193.75,0.000387,2]
[354767180,1740671443588,-415.78,0.0003884,2]
[354767182,1740671443597,-415.78,0.00039027,2]
[354767184,1740671443607,-1000.0,0.0003997,2]
[354767186,1740671443616,-200.0,0.00040081,2]
[354767188,1740671443626,-200.0,0.00040281,2]
[354767190,1740671443636,-207.85161008,0.00040471,8]
[354767192,1740671443646,-150.02,0.00041042,2]
[354767194,1740671443656,-1500.0,0.00041411,120]
[354767196,1740671443665,-150.0,0.00041922,120]
[354767198,1740671443675,-207.85161008,0.00042614,9]
[354767200,1740671443685,-517.3708,0.000428,2]
[354767202,1740671443695,-31098.8167,0.000429,2]
[354767204,1740671443705,-1765.46,0.0004299,2]
[354767206,1740671443714,-263458.01516499,0.00043,30]
[354767393,1740671445868,-43995.52516101,0.00043,30]
[354767394,1740671445878,-309.17689084,0.00043092,2]
[354767395,1740671445888,-667.24275702,0.00043192,15]
[354767396,1740671445898,-458.76,0.00043392,2]
[354767397,1740671445908,-891.57,0.000439,30]
[354767398,1740671445917,-223.2,0.00043979,2]
[354767399,1740671445927,-17129.999999,0.00044,120]
[354767400,1740671445936,-191.64,0.00044239,2]
[354767402,1740671445945,-1000.0,0.00044411,2]
[354767403,1740671445955,-500.0,0.00044412,60]
[354767405,1740671445964,-386.48899129,0.00044566,2]
[354767407,1740671445974,-667.24275698,0.00044592,15]
[354767408,1740671445983,-386.4889913,0.00044667,2]
[354767409,1740671445992,-207.85161008,0.00044757,10]
[354767410,1740671446002,-154.92,0.0004478,120]
[354767411,1740671446011,-397.65014591,0.000449,17]
[354767412,1740671446020,-500.46188175,0.00044973,10]
[354767413,1740671446030,-151.23406231,0.00044973,2]
[354767414,1740671446040,-500.94934941,0.00044973,10]
[354767415,1740671446050,-514.61114585,0.00044973,10]
[354767416,1740671446060,-300.27010048,0.00044973,2]
[354767417,1740671446069,-501.37606994,0.00044973,10]
[354767418,1740671446079,-500.83169193,0.00044973,10]
[354767419,1740671446089,-197.05875403,0.0004499,7]
[354767420,1740671446098,-1765.46,0.0004499,2]
[354767421,1740671446107,-300.0,0.00044999,30]
[354767422,1740671446116,-500.0,0.00044999,120]
[354767423,1740671446126,-500.0,0.00044999,120]
[354767424,1740671446136,-292.44732017,0.00044999,120]
[354767425,1740671446145,-500.0,0.00044999,120]
[354767426,1740671446155,-500.0,0.00044999,120]
[354767427,1740671446164,-500.0,0.00044999,120]
[354767428,1740671446173,-210.01330698,0.00044999,120]
[354767429,1740671446183,-500.0,0.00044999,120]
[354767430,1740671446192,-500.0,0.00044999,120]
[354767431,1740671446202,-150.0,0.00044999,30]
[354767432,1740671446212,-1473455.24715778,0.00045,90]
[354767433,1740671446221,-200.0,0.00045,7]
[354767434,1740671446231,-151.0,0.00045,120]
[354767435,1740671446240,-151.0,0.00045,120]
[354767436,1740671446249,-200.0,0.00045,7]
[354767437,1740671446260,-503.23184459,0.00045,90]
[354767438,1740671446269,-1802.47713,0.00045,53]
[354767439,1740671446281,-164.87056349,0.00045105,20]
[354767440,1740671446292,-150.0,0.00045136,30]
[354767441,1740671446303,-157.39,0.00045205,2]
[354767442,1740671446315,-150.0,0.00045273,30]
[354767443,1740671446325,-500.0,0.00045343,60]
[354767444,1740671446334,-150.0,0.0004541,30]
[354767445,1740671446344,-575.99,0.00045458,74]
[354767446,1740671446355,-838.29930593,0.000455,120]
[354767447,1740671446364,-152.19086933,0.00045547,30]
[354767448,1740671446374,-250.0,0.00045859,2]
[354767449,1740671446384,-667.24275698,0.00045992,15]
[354767450,1740671446393,-1000.0,0.00046,30]
[354767451,1740671446403,-3045.8285315,0.00046,30]
[354767452,1740671446412,-151.0,0.00046685,120]
[354767453,1740671446421,-207.85161008,0.000469,10]
[354767454,1740671446430,-154.47,0.000472,42]
[354767455,1740671446440,-397.6501459,0.00047317,27]
[354767456,1740671446450,-667.24275698,0.00047391,15]
[354767457,1740671446459,-204.0,0.0004747,30]
[354767458,1740671446469,-204.0,0.0004748,30]
[354767459,1740671446478,-204.0,0.0004749,30]
[354767460,1740671446488,-300.0,0.00047499,30]
[354767461,1740671446497,-90000.0,0.000475,120]
[354767462,1740671446506,-156.29,0.00047898,2]
[354767463,1740671446516,-500.0,0.00047988,60]
[354767464,1740671446525,-1897.7450001,0.00048,120]
[354767465,1740671446537,-151.0,0.00048356,120]
[354767466,1740671446547,-2904.58445208,0.00048456,31]
[354767467,1740671446556,-151.0,0.00048466,120]
[354767468,1740671446568,-500.21603515,0.0004875,7]
[354767469,1740671446577,-667.24275698,0.00048791,15]
[354767470,1740671446587,-1000.0,0.00048852,2]
[354767471,1740671446596,-150.0,0.0004886,120]
[354767472,1740671446606,-1165.59558109,0.000489,120]
[354767473,1740671446616,-750.45891168,0.00049,30]
[354767474,1740671446625,-207.85161008,0.00049043,11]
[354767475,1740671446635,-3328.0,0.00049205,120]
[354767476,1740671446645,-23900.0,0.0004928,2]
[354767477,1740671446654,-397.6501459,0.00049733,37]
[354767478,1740671446664,-2529.85852432,0.000499,120]
[354767479,1740671446673,-3212.95,0.0004996,2]
[354767480,1740671446682,-150.99,0.0004996,2]
[354767481,1740671446691,-1446.25707881,0.0005,120]
[354767482,1740671446701,-1616.84111742,0.0005,120]
[354767483,1740671446711,-2874.1905992,0.0005,120]
[354767484,1740671446721,-2006.19568184,0.0005,120]
[354767485,1740671446731,-1000.0,0.0005,5]
[354767486,1740671446745,-1000.0,0.0005,5]
[354767487,1740671446754,-1000.0,0.0005,5]
[354767488,1740671446763,-1000.0,0.0005,5]
[354767489,1740671446773,-1000.0,0.0005,5]
[354767490,1740671446783,-1000.0,0.0005,5]
[354767491,1740671446792,-1000.0,0.0005,5]
[354767492,1740671446802,-1000.0,0.0005,5]
[354767493,1740671446812,-1000.0,0.0005,5]
[354767494,1740671446822,-1000.0,0.0005,5]
[354767495,1740671446831,-1000.0,0.0005,5]
[354767496,1740671446841,-1000.0,0.0005,5]
[354767497,1740671446850,-265.0,0.0005,5]
[354767498,1740671446861,-1802.47713,0.0005,53]
[354767500,1740671446870,-150.88,0.0005,120]
[354767502,1740671446880,-150.88,0.0005,120]
[354767503,1740671446889,-150.88,0.0005,120]
[354767505,1740671446899,-150.88,0.0005,120]
[354767507,1740671446909,-150.88,0.0005,120]
[354767509,1740671446918,-150.88,0.0005,120]
[354767512,1740671446928,-150.88,0.0005,120]
[354767514,1740671446938,-150.88,0.0005,120]
[354767516,1740671446947,-150.88,0.0005,120]
[354767518,1740671446957,-150.88,0.0005,120]
[354767519,1740671446966,-150.88,0.0005,120]
[354767520,1740671446975,-150.88,0.0005,120]
[354767521,1740671446985,-150.88,0.0005,120]
[354767522,1740671446993,-150.88,0.0005,120]
[354767523,1740671447003,-2554.0,0.0005,14]
[354767524,1740671447012,-151.0,0.00050027,120]
[354767525,1740671447022,-191.64,0.00050036,2]
[354767526,1740671447031,-667.24275698,0.00050191,15]
[354767527,1740671447042,-154.92,0.00050938,120]
[354767528,1740671447052,-156.29,0.0005097,2]
[354767529,1740671447062,-207.85161008,0.00051186,12]
[354767530,1740671447072,-1471.76999693,0.00051258,120]
[354767531,1740671447081,-1111.37805596,0.00051258,120]
[354767532,1740671447091,-1255.7510448,0.00051258,120]
[354767533,1740671447100,-154.47,0.000513,48]
[354767534,1740671447110,-154.47,0.000513,48]
[354767535,1740671447120,-500.0,0.00051362,60]
[354767536,1740671447130,-150.0,0.00051483,7]
[354767538,1740671447139,-1000.0,0.00051483,5]
[354767540,1740671447148,-1000.0,0.00051483,5]
[354767542,1740671447158,-1000.0,0.00051483,5]
[354767544,1740671447167,-1000.0,0.00051483,5]
[354767546,1740671447177,-1000.0,0.00051483,5]
[354767548,1740671447187,-1000.0,0.00051483,5]
[354767550,1740671447196,-1000.0,0.00051483,5]
[354767552,1740671447205,-1000.0,0.00051483,5]
[354767554,1740671447215,-1000.0,0.00051483,5]
[354767556,1740671447224,-1000.0,0.00051483,5]
[354767558,1740671447233,-1000.0,0.00051483,5]
[354767560,1740671447243,-1000.0,0.00051483,5]
[354767562,1740671447253,-500.0,0.00051585,60]
[354767563,1740671447266,-667.24275698,0.00051591,15]
[354767565,1740671447275,-151.0,0.00051699,120]
[354767567,1740671447286,-151.0,0.00051918,120]
[354767569,1740671447296,-397.6501459,0.0005215,47]
[354767571,1740671447307,-354.0,0.00052192,7]
[354767573,1740671447316,-500.0,0.00052209,60]
[354767575,1740671447326,-4857.38740172,0.00052558,2]
[354767577,1740671447335,-667.24275698,0.0005299,15]
[354767579,1740671447345,-152.0,0.00053,120]
[354767581,1740671447357,-653.83084218,0.00053004,60]
[354767583,1740671447366,-1000.0,0.00053293,120]
[354767585,1740671447375,-207.85161008,0.00053329,12]
[354767587,1740671447385,-151.0,0.0005337,120]
[354767589,1740671447394,-1000.0,0.0005342,120]
[354767591,1740671447404,-184.71,0.0005352,120]
[354767593,1740671447413,-934.80079914,0.0005389,120]
[354767595,1740671447424,-150.88,0.0005389,120]
[354767597,1740671447434,-34250.000001,0.000539,120]
[354767599,1740671447445,-4114.0,0.000539,120]
[354767601,1740671447455,-34087.4255,0.00054,120]
[354767603,1740671447466,-1813.09184606,0.00054,120]
[354767605,1740671447477,-2127.05057864,0.00054,120]
[354767607,1740671447486,-156.29,0.00054043,2]
[354767609,1740671447497,-157.39,0.00054384,120]
[354767611,1740671447507,-667.24275698,0.0005439,15]
[354767613,1740671447518,-1080.52305734,0.00054449,2]
[354767616,1740671447528,-397.6501459,0.00054567,57]
[354767618,1740671447542,-1070.0,0.0005474,120]
[354767619,1740671447554,-1070.0,0.0005474,120]
[354767622,1740671447564,-1070.0,0.0005474,120]
[354767623,1740671447574,-1070.0,0.0005474,120]
[354767624,1740671447584,-1070.0,0.0005474,120]
[354767625,1740671447594,-460.0,0.0005474,120]
[354767626,1740671447604,-150.88,0.00054782,120]
[354767627,1740671447614,-150.88,0.00054784,120]
[354767628,1740671447624,-150.88,0.00054784,120]
[354767629,1740671447634,-300.0,0.00054792,30]
[354767630,1740671447643,-500.0,0.00054793,120]
[354767631,1740671447654,-500.0,0.00054794,120]
[354767632,1740671447664,-500.0,0.00054794,120]
[354767633,1740671447674,-500.0,0.00054794,120]